{"text_format":"1","workbook":"xlsx","n_sheets":6,"sheets":["申請書第五面及び設計内容説明書第二面の別紙","別紙（各住戸）№1","別紙（各住戸）№2","別紙（各住戸）№3","別紙（各住戸）№4","別紙（各住戸）№5"],"not_rendered":{"charts":0,"images":0,"macros":1,"external_links":0,"defined_names":7,"comments":0,"pivot_tables":0},"unopened":[],"bounds":{"document_bytes":16777216,"sheet_cells":100000,"rows_first":2000,"rows_last":500,"rows_between":2000,"halvings":0,"cell_chars":16384,"cell_head_chars":4096},"cells_cut":0,"cells_raw":0,"read":"whole","date_system":"1900"}

{"sheet":"申請書第五面及び設計内容説明書第二面の別紙","index":0,"n_rows":59,"n_cols":42,"rows_kept":59,"cut":false,"hidden":false,"merged":[[40,2,40,3],[42,10,42,11],[42,12,42,13],[42,14,42,15],[42,16,42,17],[42,18,42,19],[1,37,1,38],[53,4,53,9],[54,4,54,9],[53,15,53,16],[43,10,43,11],[43,12,43,13],[43,14,43,15],[43,16,43,17],[43,18,43,19],[43,20,43,21],[43,22,43,23],[43,24,43,25],[43,26,43,27],[43,28,43,29],[43,30,43,31],[11,11,11,13],[11,22,11,32],[9,20,9,30],[1,35,1,36],[1,27,1,28],[1,29,1,30],[1,13,1,14],[1,15,1,16],[1,17,1,18],[1,19,1,20],[1,31,1,32],[1,33,1,34],[1,21,1,22],[1,23,1,24],[1,25,1,26],[3,1,3,9],[2,10,2,38],[3,10,3,38],[5,20,5,30],[10,11,10,13],[4,4,5,9],[2,1,2,9],[4,1,9,3],[14,1,17,9],[18,1,19,9],[6,4,9,9],[10,4,11,9],[12,4,13,9],[10,1,13,3],[21,1,26,3],[29,1,39,1],[34,3,37,3],[30,3,32,3],[30,7,30,8],[32,7,32,8],[21,4,21,9],[22,4,22,9],[29,4,29,9],[31,4,31,9],[29,2,37,2],[40,1,58,1],[12,11,12,13],[13,11,13,13],[12,14,13,38],[18,11,18,13],[19,11,19,13],[18,14,19,38],[55,4,55,9],[56,4,56,9],[44,10,44,38],[45,10,45,38],[27,1,28,9],[27,10,28,38],[41,2,45,3],[44,4,44,9],[53,2,56,3],[46,2,52,3],[29,10,30,38],[31,10,32,38],[51,4,51,9],[52,4,52,9],[43,32,43,33],[43,34,43,35],[42,26,42,27],[42,28,42,29],[42,30,42,31],[42,32,42,33],[42,34,42,35],[42,20,42,21],[42,22,42,23],[42,24,42,25],[37,11,37,13]]}
[null,"申請書第五面及び設計内容説明書第二面の別紙",null,null,null,null,null,null,null,null,null,null,null,null,null,null,null,null,null,null,null,null,null,null,null,null,null,null,null,null,null,null,null,null,null,null,null,null,"Ver.01",null,"□"]
[null,null,null,null,null,null,null,null,null,null,null,null,null,null,null,null,null,null,null,null,null,null,null,null,null,null,null,null,null,null,null,null,null,null,null,null,null,null,null,null,"■"]
[null,"【1.申請対象対象となる住戸の部屋番号】",null,null,null,null,null,null,null,null,"全住戸",null,null,null,null,null,null,null,null,null,null,null,null,null,null,null,null,null,null,null,null,null,null,null,null,null,null,null,null,null,true,"再エネ設備の容量の表示【kw】"]
[null,"【2.申請対象対象となる住戸の存する建物の用途】建築基準法施行規則（昭和25年建設省令第40号）別紙の表の用途区分",null,null,null,null,null,null,null,null,"共同住宅",null,null,null,null,null,null,null,null,null,null,null,null,null,null,null,null,null,null,null,null,null,null,null,null,null,null,null,null,null,false,"【5.「ZEHマーク」に関する事項】"]
[null,"【3.評価手法に関する事項】　",null,null,"断熱性能（外皮計算）",null,null,null,null,null,null,"性能基準",null,null,null,"仕様基準",null,null,null,"誘導仕様基準",null,null,null,null,null,null,null,null,null,null,null,null,null,null,null,null,null,null,null,null,true,"再生可能エネルギー等除き"]
[null,null,null,null,null,null,null,null,null,null,null,"国土交通大臣が認める方法",null,null,null,null,null,null,null,"（",null,null,null,null,null,null,null,null,null,null,null,"）",null,null,null,null,null,null,null,null,false,"再生可能エネルギー等加え"]
[null,null,null,null,"　一次エネルギー消費量",null,null,null,null,null,null,"性能基準"]
[null,null,null,null,null,null,null,null,null,null,null,"仕様基準　（断熱性能（外皮性能）の評価手法が性能基準　又は　仕様基準の場合のみ選択可能）"]
[null,null,null,null,null,null,null,null,null,null,null,"誘導仕様基準　（断熱性能（外皮性能）の評価手法が性能基準　又は　誘導仕様基準の場合のみ選択可能）"]
[null,null,null,null,null,null,null,null,null,null,null,"国土交通大臣が認める方法",null,null,null,null,null,null,null,"（",null,null,null,null,null,null,null,null,null,null,null,"）"]
[null,"再エネ設備に関すること",null,null,"再エネ設備の有無・種類",null,null,null,null,null,null,"無",null,null,null,"太陽光発電設備",null,null,null,null,null,"太陽熱利用設備",null,null,null,null,null,"木質燃料ストーブ（ペレットストーブ）"]
[null,null,null,null,null,null,null,null,null,null,null,"有",null,null,null,"その他（18文字以内）",null,null,null,null,null,"（",null,null,null,null,null,null,null,null,null,null,null,"）"]
[null,null,null,null,"再エネ設備の容量の表示【kw】\n※任意",null,null,null,null,null,null,"希望しない",null,null,"※表示内容は別紙（各住戸）に記載"]
[null,null,null,null,null,null,null,null,null,null,null,"希望する"]
[null,"【4.一次エネルギー消費量に関する事項】\n　エネルギー消費性能の多段階表示",null,null,null,null,null,null,null,null,null,"4段階表示（再生可能エネルギー（太陽光発電設備）を考慮しない）"]
[null,null,null,null,null,null,null,null,null,null,null,"6段階表示（再生可能エネルギー（太陽光発電設備）を考慮する）※1・2"]
[null,null,null,null,null,null,null,null,null,null,"※1 【再エネ設備　有無と種類】にて、再エネ設備「有」かつ再エネ設備の種類が「太陽光発電設備」であること"]
[null,null,null,null,null,null,null,null,null,null,"※2 一次エネルギー消費量の評価手法に仕様基準又は誘導仕様基準を採用している場合は、6段階表示とすることはできません"]
[null,"【5.「ZEHマーク」に関する事項】",null,null,null,null,null,null,null,null,null,"記載しない",null,null,"※表示内容は別紙（各住戸）に記載"]
[null,null,null,null,null,null,null,null,null,null,null,"記載する"]
[null,"【6.参考情報に関する事項】",null,null,null,null,null,null,null,null,null,"記載しない",null,null,null,"別紙による　※掲載する情報を記載した別紙を提出してください。"]
[null,"目安光熱費に関すること※1",null,null,"目安光熱費の表示※2：",null,null,null,null,null,null,"希望しない",null,null,null,"希望する"]
[null,null,null,null,"ガス設備の選択※3：",null,null,null,null,null,null,"都市ガス※4",null,null,null,"液化石油ガス（LPガス）"]
[null,null,null,null,null,null,null,null,null,null,"※1　目安光熱費の表示は、一次エネルギー消費性能の評価手法が性能基準の場合のみ選択してください"]
[null,null,null,null,null,null,null,null,null,null,"※2　木質燃料ストーブを選択する場合は、目安光熱費の表示は「希望しない」を選択してください。"]
[null,null,null,null,null,null,null,null,null,null,"※3 目安光熱費の表示を希望する場合のみ選択してください"]
[null,null,null,null,null,null,null,null,null,null,"※4 オール電化の場合は都市ガスを選択してください"]
[null,"【7.備考】"]
[]
[null,"【外皮に関する事項】","躯体の外皮性能等",null,"外皮平均熱貫流率基準値（UA）",null,null,null,null,null,"※設計値は別紙（各住戸）に記載"]
[null,null,null,"性能基準","基準値",null,"（",0.87,null,"）"]
[null,null,null,null,"冷房期の平均日射熱取得率（ηAC）",null,null,null,null,null,"※設計値は別紙（各住戸）に記載"]
[null,null,null,null,"基準値",null,"（",2.8,null,"）"]
[null,null,null,null,"基準の選択",null,null,null,null,null,null,"仕様基準",null,null,null,"誘導仕様基準"]
[null,null,null,"仕様基準","躯体の断熱性能等",null,null,null,null,null,null,"熱貫流率の基準に適合",null,null,null,null,null,null,null,"断熱材の熱抵抗値の基準に適合"]
[null,null,null,null,null,null,null,null,null,null,null,"構造熱橋部の基準に適合（鉄筋コンクリート造等の場合）"]
[null,null,null,null,"開口部の断熱性能等",null,null,null,null,null,null,"開口部の熱貫流率と日射遮蔽対策の基準に適合"]
[null,null,null,null,null,null,null,null,null,null,null,"緩和措置あり",null,null,null,"窓の断熱（2％緩和）",null,null,null,null,null,"窓の日射（4％緩和）"]
[null,null,"記載図書欄",null,null,null,null,null,null,null,null,"仕様書",null,null,null,"平面図",null,null,null,"矩計図",null,null,null,"建具表",null,null,null,"計算書",null,null,null,"断熱範囲図"]
[null,null,"設計内容確認欄",null,null,null,null,null,null,null,null,null,null,null,null,null,null,null,null,null,null,null,null,null,null,null,null,null,null,null,null,null,null,null,null,null,null,"□","適"]
[null,"【一次エネルギー消費量等に関する事項】","基本事項",null,"計算対象床面積",null,null,null,null,null,null,"エネルギー消費性能計算プログラムの出力票による",null,null,null,null,null,null,null,null,null,null,null,null,null,"仕様基準・誘導仕様基準を採用"]
[null,null,"計算結果",null,"基準の選択",null,null,null,null,null,null,"仕様基準・誘導仕様基準に適合",null,null,null,null,null,null,null,null,null,"計算結果の記入 （GJ/年）"]
[null,null,null,null,"設計一次エネルギー消費量（その他を含む）"]
[null,null,null,null,"基準一次エネルギー消費量（その他を含む）"]
[null,null,null,null,"設計・基準一次エネルギー消費量（その他を除く）",null,null,null,null,null,"※別紙（各住戸）に記載"]
[null,null,null,null,"BEI",null,null,null,null,null,"※別紙（各住戸）に記載"]
[null,null,"設備機器に係る概要",null,"暖房方式",null,null,null,null,null,null,"エネルギー消費性能計算プログラムの出力票による",null,null,null,null,null,null,null,null,null,null,null,null,null,"仕様基準・誘導仕様基準を採用"]
[null,null,null,null,"冷房方式",null,null,null,null,null,null,"エネルギー消費性能計算プログラムの出力票による",null,null,null,null,null,null,null,null,null,null,null,null,null,"仕様基準・誘導仕様基準を採用"]
[null,null,null,null,"換気設備方式",null,null,null,null,null,null,"エネルギー消費性能計算プログラムの出力票による",null,null,null,null,null,null,null,null,null,null,null,null,null,"仕様基準・誘導仕様基準を採用"]
[null,null,null,null,"給湯設備",null,null,null,null,null,null,"エネルギー消費性能計算プログラムの出力票による",null,null,null,null,null,null,null,null,null,null,null,null,null,"仕様基準・誘導仕様基準を採用"]
[null,null,null,null,"照明設備",null,null,null,null,null,null,"エネルギー消費性能計算プログラムの出力票による",null,null,null,null,null,null,null,null,null,null,null,null,null,"仕様基準・誘導仕様基準を採用"]
[null,null,null,null,"太陽光発電の使用について",null,null,null,null,null,null,"エネルギー消費性能計算プログラムの出力票による"]
[null,null,null,null,"コージェネレーションの使用について",null,null,null,null,null,null,"エネルギー消費性能計算プログラムの出力票による"]
[null,null,"「ZEHマーク」、「ZEH-Mマーク」に関する表示※選択した場合のみ",null,"強化外皮基準",null,null,null,null,null,"外皮基準値",null,null,null,"（",0.6,null,"）","【W/㎡K】"]
[null,null,null,null,"再生可能エネルギー等除き",null,null,null,null,null,null,"一次エネルギー消費量削減率（省エネのみ）が基準を満たしている"]
[null,null,null,null,"再生可能エネルギー等加え",null,null,null,null,null,null,"一次エネルギー消費量削減率（省エネのみ）が基準を満たしている"]
[null,null,null,null,"外皮基準・一次エネルギー消費量水準",null,null,null,null,null,null,"誘導仕様基準に適合（ZEH Oriented 又は ZEH-M Oriented ※1に限る）※1共用部無しの場合に限る"]
[null,null,"記載図書欄",null,null,null,null,null,null,null,null,"仕様書",null,null,null,"平面図",null,null,null,"機器表",null,null,null,"計算書",null,null,null,"系統図"]
[null,null,"設計内容確認欄",null,null,null,null,null,null,null,null,null,null,null,null,null,null,null,null,null,null,null,null,null,null,null,null,null,null,null,null,null,null,null,null,null,null,"□","適"]

{"sheet":"別紙（各住戸）№1","index":1,"n_rows":65,"n_cols":23,"rows_kept":65,"cut":false,"hidden":false,"merged":[]}
[null,"申請書第五面及び設計内容説明書第二面の別紙（各住戸）",null,null,null,null,null,null,null,null,null,null,null,null,null,null,null,null,null,null,"Ver.01"]
[null,"通し番号","部屋番号","タイプ","計算対象面積","UA","ηAC","設計一次（その他除く）GJ/年","基準一次（その他除く）GJ/年","BEI","削減量","設計一次（再エネ等除く）GJ/年","基準一次（再エネ等除く）GJ/年","BEI","削減量","設計一次（再エネ等加え）GJ/年","基準一次（再エネ等加え）GJ/年","BEI","削減量","再エネ設備の容量【kw】\n※任意","「ZEHマーク」表示について\n※記載する場合"]
[null,1,null,null,null,null,null,null,null,{"$f":"IFERROR(ROUNDUP(H3/I3,2),\"\")","v":""},{"$f":"IFERROR(ROUNDDOWN((I3-H3)/I3*100,0),\"\")","v":""},null,null,{"$f":"IFERROR(ROUNDUP(L3/M3,2),\"\")","v":""},{"$f":"IFERROR(ROUNDDOWN((M3-L3)/M3*100,0),\"\")","v":""},null,null,{"$f":"IFERROR(ROUNDUP(P3/Q3,2),\"\")","v":""},{"$f":"IFERROR(ROUNDDOWN((Q3-P3)/Q3*100,0),\"\")","v":""},null,null,null,"記載しない"]
[null,2,null,null,null,null,null,null,null,{"$f":"IFERROR(ROUNDUP(H4/I4,2),\"\")","v":""},{"$f":"IFERROR(ROUNDDOWN((I4-H4)/I4*100,0),\"\")","v":""},null,null,{"$f":"IFERROR(ROUNDUP(L4/M4,2),\"\")","v":""},{"$f":"IFERROR(ROUNDDOWN((M4-L4)/M4*100,0),\"\")","v":""},null,null,{"$f":"IFERROR(ROUNDUP(P4/Q4,2),\"\")","v":""},{"$f":"IFERROR(ROUNDDOWN((Q4-P4)/Q4*100,0),\"\")","v":""},null,null,null,"『ZEH』"]
[null,3,null,null,null,null,null,null,null,"","",null,null,"","",null,null,"","",null,null,null,"Nearly ZEH"]
[null,4,null,null,null,null,null,null,null,"","",null,null,"","",null,null,"","",null,null,null,"ZEH Ready"]
[null,5,null,null,null,null,null,null,null,"","",null,null,"","",null,null,"","",null,null,null,"ZEH Oriented"]
[null,6,null,null,null,null,null,null,null,"","",null,null,"","",null,null,"",""]
[null,7,null,null,null,null,null,null,null,"","",null,null,"","",null,null,"",""]
[null,8,null,null,null,null,null,null,null,"","",null,null,"","",null,null,"",""]
[null,9,null,null,null,null,null,null,null,"","",null,null,"","",null,null,"",""]
[null,10,null,null,null,null,null,null,null,"","",null,null,"","",null,null,"",""]
[null,11,null,null,null,null,null,null,null,"","",null,null,"","",null,null,"",""]
[null,12,null,null,null,null,null,null,null,"","",null,null,"","",null,null,"",""]
[null,13,null,null,null,null,null,null,null,"","",null,null,"","",null,null,"",""]
[null,14,null,null,null,null,null,null,null,"","",null,null,"","",null,null,"",""]
[null,15,null,null,null,null,null,null,null,"","",null,null,"","",null,null,"",""]
[null,16,null,null,null,null,null,null,null,"","",null,null,"","",null,null,"",""]
[null,17,null,null,null,null,null,null,null,"","",null,null,"","",null,null,"",""]
[null,18,null,null,null,null,null,null,null,"","",null,null,"","",null,null,"",""]
[null,19,null,null,null,null,null,null,null,"","",null,null,"","",null,null,"",""]
[null,20,null,null,null,null,null,null,null,"","",null,null,"","",null,null,"",""]
[null,21,null,null,null,null,null,null,null,"","",null,null,"","",null,null,"",""]
[null,22,null,null,null,null,null,null,null,"","",null,null,"","",null,null,"",""]
[null,23,null,null,null,null,null,null,null,"","",null,null,"","",null,null,"",""]
[null,24,null,null,null,null,null,null,null,"","",null,null,"","",null,null,"",""]
[null,25,null,null,null,null,null,null,null,"","",null,null,"","",null,null,"",""]
[null,26,null,null,null,null,null,null,null,"","",null,null,"","",null,null,"",""]
[null,27,null,null,null,null,null,null,null,"","",null,null,"","",null,null,"",""]
[null,28,null,null,null,null,null,null,null,"","",null,null,"","",null,null,"",""]
[null,29,null,null,null,null,null,null,null,"","",null,null,"","",null,null,"",""]
[null,30,null,null,null,null,null,null,null,"","",null,null,"","",null,null,"",""]
[null,31,null,null,null,null,null,null,null,"","",null,null,"","",null,null,"",""]
[null,32,null,null,null,null,null,null,null,"","",null,null,"","",null,null,"",""]
[null,33,null,null,null,null,null,null,null,"","",null,null,"","",null,null,"",""]
[null,34,null,null,null,null,null,null,null,"","",null,null,"","",null,null,"",""]
[null,35,null,null,null,null,null,null,null,"","",null,null,"","",null,null,"",""]
[null,36,null,null,null,null,null,null,null,"","",null,null,"","",null,null,"",""]
[null,37,null,null,null,null,null,null,null,"","",null,null,"","",null,null,"",""]
[null,38,null,null,null,null,null,null,null,"","",null,null,"","",null,null,"",""]
[null,39,null,null,null,null,null,null,null,"","",null,null,"","",null,null,"",""]
[null,40,null,null,null,null,null,null,null,"","",null,null,"","",null,null,"",""]
[null,41,null,null,null,null,null,null,null,"","",null,null,"","",null,null,"",""]
[null,42,null,null,null,null,null,null,null,"","",null,null,"","",null,null,"",""]
[null,43,null,null,null,null,null,null,null,"","",null,null,"","",null,null,"",""]
[null,44,null,null,null,null,null,null,null,"","",null,null,"","",null,null,"",""]
[null,45,null,null,null,null,null,null,null,"","",null,null,"","",null,null,"",""]
[null,46,null,null,null,null,null,null,null,"","",null,null,"","",null,null,"",""]
[null,47,null,null,null,null,null,null,null,"","",null,null,"","",null,null,"",""]
[null,48,null,null,null,null,null,null,null,"","",null,null,"","",null,null,"",""]
[null,49,null,null,null,null,null,null,null,"","",null,null,"","",null,null,"",""]
[null,50,null,null,null,null,null,null,null,"","",null,null,"","",null,null,"",""]
[null,51,null,null,null,null,null,null,null,"","",null,null,"","",null,null,"",""]
[null,52,null,null,null,null,null,null,null,"","",null,null,"","",null,null,"",""]
[null,53,null,null,null,null,null,null,null,"","",null,null,"","",null,null,"",""]
[null,54,null,null,null,null,null,null,null,"","",null,null,"","",null,null,"",""]
[null,55,null,null,null,null,null,null,null,"","",null,null,"","",null,null,"",""]
[null,56,null,null,null,null,null,null,null,"","",null,null,"","",null,null,"",""]
[null,57,null,null,null,null,null,null,null,"","",null,null,"","",null,null,"",""]
[null,58,null,null,null,null,null,null,null,"","",null,null,"","",null,null,"",""]
[null,59,null,null,null,null,null,null,null,"","",null,null,"","",null,null,"",""]
[null,60,null,null,null,null,null,null,null,"","",null,null,"","",null,null,"",""]
[null,null,null,"ページごと合計",{"$f":"SUM(E3:E62)","v":0},null,null,{"$f":"SUM(H3:H62)","v":0},{"$f":"SUM(I3:I62)","v":0},null,null,{"$f":"SUM(L3:L62)","v":0},{"$f":"SUM(M3:M62)","v":0},null,null,{"$f":"SUM(P3:P62)","v":0},{"$f":"SUM(Q3:Q62)","v":0}]
[]
[null,null,null,"全ページ合計",{"$f":"SUM('別紙（各住戸）№1:別紙（各住戸）№5'!E63)","v":0},null,null,{"$f":"SUM('別紙（各住戸）№1:別紙（各住戸）№5'!H63)","v":0},{"$f":"SUM('別紙（各住戸）№1:別紙（各住戸）№5'!I63)","v":0},null,null,{"$f":"SUM('別紙（各住戸）№1:別紙（各住戸）№5'!L63)","v":0},{"$f":"SUM('別紙（各住戸）№1:別紙（各住戸）№5'!M63)","v":0},null,null,{"$f":"SUM('別紙（各住戸）№1:別紙（各住戸）№5'!P63)","v":0},{"$f":"SUM('別紙（各住戸）№1:別紙（各住戸）№5'!Q63)","v":0},null,null,null,"№1"]

{"sheet":"別紙（各住戸）№2","index":2,"n_rows":65,"n_cols":23,"rows_kept":65,"cut":false,"hidden":false,"merged":[]}
[null,"申請書第五面及び設計内容説明書第二面の別紙（各住戸）",null,null,null,null,null,null,null,null,null,null,null,null,null,null,null,null,null,null,"Ver.01"]
[null,"通し番号","部屋番号","タイプ","計算対象面積","UA","ηAC","設計一次（その他除く）GJ/年","基準一次（その他除く）GJ/年","BEI","削減量","設計一次（再エネ等除く）GJ/年","基準一次（再エネ等除く）GJ/年","BEI","削減量","設計一次（再エネ等加え）GJ/年","基準一次（再エネ等加え）GJ/年","BEI","削減量","再エネ設備の容量【kw】\n※任意","「ZEHマーク」表示について\n※記載する場合"]
[null,61,null,null,null,null,null,null,null,{"$f":"IFERROR(ROUNDUP(H3/I3,2),\"\")","v":""},{"$f":"IFERROR(ROUNDDOWN((I3-H3)/I3*100,0),\"\")","v":""},null,null,{"$f":"IFERROR(ROUNDUP(L3/M3,2),\"\")","v":""},{"$f":"IFERROR(ROUNDDOWN((M3-L3)/M3*100,0),\"\")","v":""},null,null,{"$f":"IFERROR(ROUNDUP(P3/Q3,2),\"\")","v":""},{"$f":"IFERROR(ROUNDDOWN((Q3-P3)/Q3*100,0),\"\")","v":""},null,null,null,"記載しない"]
[null,62,null,null,null,null,null,null,null,{"$f":"IFERROR(ROUNDUP(H4/I4,2),\"\")","v":""},{"$f":"IFERROR(ROUNDDOWN((I4-H4)/I4*100,0),\"\")","v":""},null,null,{"$f":"IFERROR(ROUNDUP(L4/M4,2),\"\")","v":""},{"$f":"IFERROR(ROUNDDOWN((M4-L4)/M4*100,0),\"\")","v":""},null,null,{"$f":"IFERROR(ROUNDUP(P4/Q4,2),\"\")","v":""},{"$f":"IFERROR(ROUNDDOWN((Q4-P4)/Q4*100,0),\"\")","v":""},null,null,null,"『ZEH』"]
[null,63,null,null,null,null,null,null,null,"","",null,null,"","",null,null,"","",null,null,null,"Nearly ZEH"]
[null,64,null,null,null,null,null,null,null,"","",null,null,"","",null,null,"","",null,null,null,"ZEH Ready"]
[null,65,null,null,null,null,null,null,null,"","",null,null,"","",null,null,"","",null,null,null,"ZEH Oriented"]
[null,66,null,null,null,null,null,null,null,"","",null,null,"","",null,null,"",""]
[null,67,null,null,null,null,null,null,null,"","",null,null,"","",null,null,"",""]
[null,68,null,null,null,null,null,null,null,"","",null,null,"","",null,null,"",""]
[null,69,null,null,null,null,null,null,null,"","",null,null,"","",null,null,"",""]
[null,70,null,null,null,null,null,null,null,"","",null,null,"","",null,null,"",""]
[null,71,null,null,null,null,null,null,null,"","",null,null,"","",null,null,"",""]
[null,72,null,null,null,null,null,null,null,"","",null,null,"","",null,null,"",""]
[null,73,null,null,null,null,null,null,null,"","",null,null,"","",null,null,"",""]
[null,74,null,null,null,null,null,null,null,"","",null,null,"","",null,null,"",""]
[null,75,null,null,null,null,null,null,null,"","",null,null,"","",null,null,"",""]
[null,76,null,null,null,null,null,null,null,"","",null,null,"","",null,null,"",""]
[null,77,null,null,null,null,null,null,null,"","",null,null,"","",null,null,"",""]
[null,78,null,null,null,null,null,null,null,"","",null,null,"","",null,null,"",""]
[null,79,null,null,null,null,null,null,null,"","",null,null,"","",null,null,"",""]
[null,80,null,null,null,null,null,null,null,"","",null,null,"","",null,null,"",""]
[null,81,null,null,null,null,null,null,null,"","",null,null,"","",null,null,"",""]
[null,82,null,null,null,null,null,null,null,"","",null,null,"","",null,null,"",""]
[null,83,null,null,null,null,null,null,null,"","",null,null,"","",null,null,"",""]
[null,84,null,null,null,null,null,null,null,"","",null,null,"","",null,null,"",""]
[null,85,null,null,null,null,null,null,null,"","",null,null,"","",null,null,"",""]
[null,86,null,null,null,null,null,null,null,"","",null,null,"","",null,null,"",""]
[null,87,null,null,null,null,null,null,null,"","",null,null,"","",null,null,"",""]
[null,88,null,null,null,null,null,null,null,"","",null,null,"","",null,null,"",""]
[null,89,null,null,null,null,null,null,null,"","",null,null,"","",null,null,"",""]
[null,90,null,null,null,null,null,null,null,"","",null,null,"","",null,null,"",""]
[null,91,null,null,null,null,null,null,null,"","",null,null,"","",null,null,"",""]
[null,92,null,null,null,null,null,null,null,"","",null,null,"","",null,null,"",""]
[null,93,null,null,null,null,null,null,null,"","",null,null,"","",null,null,"",""]
[null,94,null,null,null,null,null,null,null,"","",null,null,"","",null,null,"",""]
[null,95,null,null,null,null,null,null,null,"","",null,null,"","",null,null,"",""]
[null,96,null,null,null,null,null,null,null,"","",null,null,"","",null,null,"",""]
[null,97,null,null,null,null,null,null,null,"","",null,null,"","",null,null,"",""]
[null,98,null,null,null,null,null,null,null,"","",null,null,"","",null,null,"",""]
[null,99,null,null,null,null,null,null,null,"","",null,null,"","",null,null,"",""]
[null,100,null,null,null,null,null,null,null,"","",null,null,"","",null,null,"",""]
[null,101,null,null,null,null,null,null,null,"","",null,null,"","",null,null,"",""]
[null,102,null,null,null,null,null,null,null,"","",null,null,"","",null,null,"",""]
[null,103,null,null,null,null,null,null,null,"","",null,null,"","",null,null,"",""]
[null,104,null,null,null,null,null,null,null,"","",null,null,"","",null,null,"",""]
[null,105,null,null,null,null,null,null,null,"","",null,null,"","",null,null,"",""]
[null,106,null,null,null,null,null,null,null,"","",null,null,"","",null,null,"",""]
[null,107,null,null,null,null,null,null,null,"","",null,null,"","",null,null,"",""]
[null,108,null,null,null,null,null,null,null,"","",null,null,"","",null,null,"",""]
[null,109,null,null,null,null,null,null,null,"","",null,null,"","",null,null,"",""]
[null,110,null,null,null,null,null,null,null,"","",null,null,"","",null,null,"",""]
[null,111,null,null,null,null,null,null,null,"","",null,null,"","",null,null,"",""]
[null,112,null,null,null,null,null,null,null,"","",null,null,"","",null,null,"",""]
[null,113,null,null,null,null,null,null,null,"","",null,null,"","",null,null,"",""]
[null,114,null,null,null,null,null,null,null,"","",null,null,"","",null,null,"",""]
[null,115,null,null,null,null,null,null,null,"","",null,null,"","",null,null,"",""]
[null,116,null,null,null,null,null,null,null,"","",null,null,"","",null,null,"",""]
[null,117,null,null,null,null,null,null,null,"","",null,null,"","",null,null,"",""]
[null,118,null,null,null,null,null,null,null,"","",null,null,"","",null,null,"",""]
[null,119,null,null,null,null,null,null,null,"","",null,null,"","",null,null,"",""]
[null,120,null,null,null,null,null,null,null,"","",null,null,"","",null,null,"",""]
[null,null,null,"ページごと合計",{"$f":"SUM(E3:E62)","v":0},null,null,{"$f":"SUM(H3:H62)","v":0},{"$f":"SUM(I3:I62)","v":0},null,null,{"$f":"SUM(L3:L62)","v":0},{"$f":"SUM(M3:M62)","v":0},null,null,{"$f":"SUM(P3:P62)","v":0},{"$f":"SUM(Q3:Q62)","v":0}]
[]
[null,null,null,null,null,null,null,null,null,null,null,null,null,null,null,null,null,null,null,null,"№2"]

{"sheet":"別紙（各住戸）№3","index":3,"n_rows":65,"n_cols":23,"rows_kept":65,"cut":false,"hidden":false,"merged":[]}
[null,"申請書第五面及び設計内容説明書第二面の別紙（各住戸）",null,null,null,null,null,null,null,null,null,null,null,null,null,null,null,null,null,null,"Ver.01"]
[null,"通し番号","部屋番号","タイプ","計算対象面積","UA","ηAC","設計一次（その他除く）GJ/年","基準一次（その他除く）GJ/年","BEI","削減量","設計一次（再エネ等除く）GJ/年","基準一次（再エネ等除く）GJ/年","BEI","削減量","設計一次（再エネ等加え）GJ/年","基準一次（再エネ等加え）GJ/年","BEI","削減量","再エネ設備の容量【kw】\n※任意","「ZEHマーク」表示について\n※記載する場合"]
[null,121,null,null,null,null,null,null,null,{"$f":"IFERROR(ROUNDUP(H3/I3,2),\"\")","v":""},{"$f":"IFERROR(ROUNDDOWN((I3-H3)/I3*100,0),\"\")","v":""},null,null,{"$f":"IFERROR(ROUNDUP(L3/M3,2),\"\")","v":""},{"$f":"IFERROR(ROUNDDOWN((M3-L3)/M3*100,0),\"\")","v":""},null,null,{"$f":"IFERROR(ROUNDUP(P3/Q3,2),\"\")","v":""},{"$f":"IFERROR(ROUNDDOWN((Q3-P3)/Q3*100,0),\"\")","v":""},null,null,null,"記載しない"]
[null,122,null,null,null,null,null,null,null,{"$f":"IFERROR(ROUNDUP(H4/I4,2),\"\")","v":""},{"$f":"IFERROR(ROUNDDOWN((I4-H4)/I4*100,0),\"\")","v":""},null,null,{"$f":"IFERROR(ROUNDUP(L4/M4,2),\"\")","v":""},{"$f":"IFERROR(ROUNDDOWN((M4-L4)/M4*100,0),\"\")","v":""},null,null,{"$f":"IFERROR(ROUNDUP(P4/Q4,2),\"\")","v":""},{"$f":"IFERROR(ROUNDDOWN((Q4-P4)/Q4*100,0),\"\")","v":""},null,null,null,"『ZEH』"]
[null,123,null,null,null,null,null,null,null,"","",null,null,"","",null,null,"","",null,null,null,"Nearly ZEH"]
[null,124,null,null,null,null,null,null,null,"","",null,null,"","",null,null,"","",null,null,null,"ZEH Ready"]
[null,125,null,null,null,null,null,null,null,"","",null,null,"","",null,null,"","",null,null,null,"ZEH Oriented"]
[null,126,null,null,null,null,null,null,null,"","",null,null,"","",null,null,"",""]
[null,127,null,null,null,null,null,null,null,"","",null,null,"","",null,null,"",""]
[null,128,null,null,null,null,null,null,null,"","",null,null,"","",null,null,"",""]
[null,129,null,null,null,null,null,null,null,"","",null,null,"","",null,null,"",""]
[null,130,null,null,null,null,null,null,null,"","",null,null,"","",null,null,"",""]
[null,131,null,null,null,null,null,null,null,"","",null,null,"","",null,null,"",""]
[null,132,null,null,null,null,null,null,null,"","",null,null,"","",null,null,"",""]
[null,133,null,null,null,null,null,null,null,"","",null,null,"","",null,null,"",""]
[null,134,null,null,null,null,null,null,null,"","",null,null,"","",null,null,"",""]
[null,135,null,null,null,null,null,null,null,"","",null,null,"","",null,null,"",""]
[null,136,null,null,null,null,null,null,null,"","",null,null,"","",null,null,"",""]
[null,137,null,null,null,null,null,null,null,"","",null,null,"","",null,null,"",""]
[null,138,null,null,null,null,null,null,null,"","",null,null,"","",null,null,"",""]
[null,139,null,null,null,null,null,null,null,"","",null,null,"","",null,null,"",""]
[null,140,null,null,null,null,null,null,null,"","",null,null,"","",null,null,"",""]
[null,141,null,null,null,null,null,null,null,"","",null,null,"","",null,null,"",""]
[null,142,null,null,null,null,null,null,null,"","",null,null,"","",null,null,"",""]
[null,143,null,null,null,null,null,null,null,"","",null,null,"","",null,null,"",""]
[null,144,null,null,null,null,null,null,null,"","",null,null,"","",null,null,"",""]
[null,145,null,null,null,null,null,null,null,"","",null,null,"","",null,null,"",""]
[null,146,null,null,null,null,null,null,null,"","",null,null,"","",null,null,"",""]
[null,147,null,null,null,null,null,null,null,"","",null,null,"","",null,null,"",""]
[null,148,null,null,null,null,null,null,null,"","",null,null,"","",null,null,"",""]
[null,149,null,null,null,null,null,null,null,"","",null,null,"","",null,null,"",""]
[null,150,null,null,null,null,null,null,null,"","",null,null,"","",null,null,"",""]
[null,151,null,null,null,null,null,null,null,"","",null,null,"","",null,null,"",""]
[null,152,null,null,null,null,null,null,null,"","",null,null,"","",null,null,"",""]
[null,153,null,null,null,null,null,null,null,"","",null,null,"","",null,null,"",""]
[null,154,null,null,null,null,null,null,null,"","",null,null,"","",null,null,"",""]
[null,155,null,null,null,null,null,null,null,"","",null,null,"","",null,null,"",""]
[null,156,null,null,null,null,null,null,null,"","",null,null,"","",null,null,"",""]
[null,157,null,null,null,null,null,null,null,"","",null,null,"","",null,null,"",""]
[null,158,null,null,null,null,null,null,null,"","",null,null,"","",null,null,"",""]
[null,159,null,null,null,null,null,null,null,"","",null,null,"","",null,null,"",""]
[null,160,null,null,null,null,null,null,null,"","",null,null,"","",null,null,"",""]
[null,161,null,null,null,null,null,null,null,"","",null,null,"","",null,null,"",""]
[null,162,null,null,null,null,null,null,null,"","",null,null,"","",null,null,"",""]
[null,163,null,null,null,null,null,null,null,"","",null,null,"","",null,null,"",""]
[null,164,null,null,null,null,null,null,null,"","",null,null,"","",null,null,"",""]
[null,165,null,null,null,null,null,null,null,"","",null,null,"","",null,null,"",""]
[null,166,null,null,null,null,null,null,null,"","",null,null,"","",null,null,"",""]
[null,167,null,null,null,null,null,null,null,"","",null,null,"","",null,null,"",""]
[null,168,null,null,null,null,null,null,null,"","",null,null,"","",null,null,"",""]
[null,169,null,null,null,null,null,null,null,"","",null,null,"","",null,null,"",""]
[null,170,null,null,null,null,null,null,null,"","",null,null,"","",null,null,"",""]
[null,171,null,null,null,null,null,null,null,"","",null,null,"","",null,null,"",""]
[null,172,null,null,null,null,null,null,null,"","",null,null,"","",null,null,"",""]
[null,173,null,null,null,null,null,null,null,"","",null,null,"","",null,null,"",""]
[null,174,null,null,null,null,null,null,null,"","",null,null,"","",null,null,"",""]
[null,175,null,null,null,null,null,null,null,"","",null,null,"","",null,null,"",""]
[null,176,null,null,null,null,null,null,null,"","",null,null,"","",null,null,"",""]
[null,177,null,null,null,null,null,null,null,"","",null,null,"","",null,null,"",""]
[null,178,null,null,null,null,null,null,null,"","",null,null,"","",null,null,"",""]
[null,179,null,null,null,null,null,null,null,"","",null,null,"","",null,null,"",""]
[null,180,null,null,null,null,null,null,null,"","",null,null,"","",null,null,"",""]
[null,null,null,"ページごと合計",{"$f":"SUM(E3:E62)","v":0},null,null,{"$f":"SUM(H3:H62)","v":0},{"$f":"SUM(I3:I62)","v":0},null,null,{"$f":"SUM(L3:L62)","v":0},{"$f":"SUM(M3:M62)","v":0},null,null,{"$f":"SUM(P3:P62)","v":0},{"$f":"SUM(Q3:Q62)","v":0}]
[]
[null,null,null,null,null,null,null,null,null,null,null,null,null,null,null,null,null,null,null,null,"№3"]

{"sheet":"別紙（各住戸）№4","index":4,"n_rows":65,"n_cols":23,"rows_kept":65,"cut":false,"hidden":false,"merged":[]}
[null,"申請書第五面及び設計内容説明書第二面の別紙（各住戸）",null,null,null,null,null,null,null,null,null,null,null,null,null,null,null,null,null,null,"Ver.01"]
[null,"通し番号","部屋番号","タイプ","計算対象面積","UA","ηAC","設計一次（その他除く）GJ/年","基準一次（その他除く）GJ/年","BEI","削減量","設計一次（再エネ等除く）GJ/年","基準一次（再エネ等除く）GJ/年","BEI","削減量","設計一次（再エネ等加え）GJ/年","基準一次（再エネ等加え）GJ/年","BEI","削減量","再エネ設備の容量【kw】\n※任意","「ZEHマーク」表示について\n※記載する場合"]
[null,181,null,null,null,null,null,null,null,{"$f":"IFERROR(ROUNDUP(H3/I3,2),\"\")","v":""},{"$f":"IFERROR(ROUNDDOWN((I3-H3)/I3*100,0),\"\")","v":""},null,null,{"$f":"IFERROR(ROUNDUP(L3/M3,2),\"\")","v":""},{"$f":"IFERROR(ROUNDDOWN((M3-L3)/M3*100,0),\"\")","v":""},null,null,{"$f":"IFERROR(ROUNDUP(P3/Q3,2),\"\")","v":""},{"$f":"IFERROR(ROUNDDOWN((Q3-P3)/Q3*100,0),\"\")","v":""},null,null,null,"記載しない"]
[null,182,null,null,null,null,null,null,null,{"$f":"IFERROR(ROUNDUP(H4/I4,2),\"\")","v":""},{"$f":"IFERROR(ROUNDDOWN((I4-H4)/I4*100,0),\"\")","v":""},null,null,{"$f":"IFERROR(ROUNDUP(L4/M4,2),\"\")","v":""},{"$f":"IFERROR(ROUNDDOWN((M4-L4)/M4*100,0),\"\")","v":""},null,null,{"$f":"IFERROR(ROUNDUP(P4/Q4,2),\"\")","v":""},{"$f":"IFERROR(ROUNDDOWN((Q4-P4)/Q4*100,0),\"\")","v":""},null,null,null,"『ZEH』"]
[null,183,null,null,null,null,null,null,null,"","",null,null,"","",null,null,"","",null,null,null,"Nearly ZEH"]
[null,184,null,null,null,null,null,null,null,"","",null,null,"","",null,null,"","",null,null,null,"ZEH Ready"]
[null,185,null,null,null,null,null,null,null,"","",null,null,"","",null,null,"","",null,null,null,"ZEH Oriented"]
[null,186,null,null,null,null,null,null,null,"","",null,null,"","",null,null,"",""]
[null,187,null,null,null,null,null,null,null,"","",null,null,"","",null,null,"",""]
[null,188,null,null,null,null,null,null,null,"","",null,null,"","",null,null,"",""]
[null,189,null,null,null,null,null,null,null,"","",null,null,"","",null,null,"",""]
[null,190,null,null,null,null,null,null,null,"","",null,null,"","",null,null,"",""]
[null,191,null,null,null,null,null,null,null,"","",null,null,"","",null,null,"",""]
[null,192,null,null,null,null,null,null,null,"","",null,null,"","",null,null,"",""]
[null,193,null,null,null,null,null,null,null,"","",null,null,"","",null,null,"",""]
[null,194,null,null,null,null,null,null,null,"","",null,null,"","",null,null,"",""]
[null,195,null,null,null,null,null,null,null,"","",null,null,"","",null,null,"",""]
[null,196,null,null,null,null,null,null,null,"","",null,null,"","",null,null,"",""]
[null,197,null,null,null,null,null,null,null,"","",null,null,"","",null,null,"",""]
[null,198,null,null,null,null,null,null,null,"","",null,null,"","",null,null,"",""]
[null,199,null,null,null,null,null,null,null,"","",null,null,"","",null,null,"",""]
[null,200,null,null,null,null,null,null,null,"","",null,null,"","",null,null,"",""]
[null,201,null,null,null,null,null,null,null,"","",null,null,"","",null,null,"",""]
[null,202,null,null,null,null,null,null,null,"","",null,null,"","",null,null,"",""]
[null,203,null,null,null,null,null,null,null,"","",null,null,"","",null,null,"",""]
[null,204,null,null,null,null,null,null,null,"","",null,null,"","",null,null,"",""]
[null,205,null,null,null,null,null,null,null,"","",null,null,"","",null,null,"",""]
[null,206,null,null,null,null,null,null,null,"","",null,null,"","",null,null,"",""]
[null,207,null,null,null,null,null,null,null,"","",null,null,"","",null,null,"",""]
[null,208,null,null,null,null,null,null,null,"","",null,null,"","",null,null,"",""]
[null,209,null,null,null,null,null,null,null,"","",null,null,"","",null,null,"",""]
[null,210,null,null,null,null,null,null,null,"","",null,null,"","",null,null,"",""]
[null,211,null,null,null,null,null,null,null,"","",null,null,"","",null,null,"",""]
[null,212,null,null,null,null,null,null,null,"","",null,null,"","",null,null,"",""]
[null,213,null,null,null,null,null,null,null,"","",null,null,"","",null,null,"",""]
[null,214,null,null,null,null,null,null,null,"","",null,null,"","",null,null,"",""]
[null,215,null,null,null,null,null,null,null,"","",null,null,"","",null,null,"",""]
[null,216,null,null,null,null,null,null,null,"","",null,null,"","",null,null,"",""]
[null,217,null,null,null,null,null,null,null,"","",null,null,"","",null,null,"",""]
[null,218,null,null,null,null,null,null,null,"","",null,null,"","",null,null,"",""]
[null,219,null,null,null,null,null,null,null,"","",null,null,"","",null,null,"",""]
[null,220,null,null,null,null,null,null,null,"","",null,null,"","",null,null,"",""]
[null,221,null,null,null,null,null,null,null,"","",null,null,"","",null,null,"",""]
[null,222,null,null,null,null,null,null,null,"","",null,null,"","",null,null,"",""]
[null,223,null,null,null,null,null,null,null,"","",null,null,"","",null,null,"",""]
[null,224,null,null,null,null,null,null,null,"","",null,null,"","",null,null,"",""]
[null,225,null,null,null,null,null,null,null,"","",null,null,"","",null,null,"",""]
[null,226,null,null,null,null,null,null,null,"","",null,null,"","",null,null,"",""]
[null,227,null,null,null,null,null,null,null,"","",null,null,"","",null,null,"",""]
[null,228,null,null,null,null,null,null,null,"","",null,null,"","",null,null,"",""]
[null,229,null,null,null,null,null,null,null,"","",null,null,"","",null,null,"",""]
[null,230,null,null,null,null,null,null,null,"","",null,null,"","",null,null,"",""]
[null,231,null,null,null,null,null,null,null,"","",null,null,"","",null,null,"",""]
[null,232,null,null,null,null,null,null,null,"","",null,null,"","",null,null,"",""]
[null,233,null,null,null,null,null,null,null,"","",null,null,"","",null,null,"",""]
[null,234,null,null,null,null,null,null,null,"","",null,null,"","",null,null,"",""]
[null,235,null,null,null,null,null,null,null,"","",null,null,"","",null,null,"",""]
[null,236,null,null,null,null,null,null,null,"","",null,null,"","",null,null,"",""]
[null,237,null,null,null,null,null,null,null,"","",null,null,"","",null,null,"",""]
[null,238,null,null,null,null,null,null,null,"","",null,null,"","",null,null,"",""]
[null,239,null,null,null,null,null,null,null,"","",null,null,"","",null,null,"",""]
[null,240,null,null,null,null,null,null,null,"","",null,null,"","",null,null,"",""]
[null,null,null,"ページごと合計",{"$f":"SUM(E3:E62)","v":0},null,null,{"$f":"SUM(H3:H62)","v":0},{"$f":"SUM(I3:I62)","v":0},null,null,{"$f":"SUM(L3:L62)","v":0},{"$f":"SUM(M3:M62)","v":0},null,null,{"$f":"SUM(P3:P62)","v":0},{"$f":"SUM(Q3:Q62)","v":0}]
[]
[null,null,null,null,null,null,null,null,null,null,null,null,null,null,null,null,null,null,null,null,"№4"]

{"sheet":"別紙（各住戸）№5","index":5,"n_rows":65,"n_cols":23,"rows_kept":65,"cut":false,"hidden":false,"merged":[]}
[null,"申請書第五面及び設計内容説明書第二面の別紙（各住戸）",null,null,null,null,null,null,null,null,null,null,null,null,null,null,null,null,null,null,"Ver.01"]
[null,"通し番号","部屋番号","タイプ","計算対象面積","UA","ηAC","設計一次（その他除く）GJ/年","基準一次（その他除く）GJ/年","BEI","削減量","設計一次（再エネ等除く）GJ/年","基準一次（再エネ等除く）GJ/年","BEI","削減量","設計一次（再エネ等加え）GJ/年","基準一次（再エネ等加え）GJ/年","BEI","削減量","再エネ設備の容量【kw】\n※任意","「ZEHマーク」表示について\n※記載する場合"]
[null,241,null,null,null,null,null,null,null,{"$f":"IFERROR(ROUNDUP(H3/I3,2),\"\")","v":""},{"$f":"IFERROR(ROUNDDOWN((I3-H3)/I3*100,0),\"\")","v":""},null,null,{"$f":"IFERROR(ROUNDUP(L3/M3,2),\"\")","v":""},{"$f":"IFERROR(ROUNDDOWN((M3-L3)/M3*100,0),\"\")","v":""},null,null,{"$f":"IFERROR(ROUNDUP(P3/Q3,2),\"\")","v":""},{"$f":"IFERROR(ROUNDDOWN((Q3-P3)/Q3*100,0),\"\")","v":""},null,null,null,"記載しない"]
[null,242,null,null,null,null,null,null,null,{"$f":"IFERROR(ROUNDUP(H4/I4,2),\"\")","v":""},{"$f":"IFERROR(ROUNDDOWN((I4-H4)/I4*100,0),\"\")","v":""},null,null,{"$f":"IFERROR(ROUNDUP(L4/M4,2),\"\")","v":""},{"$f":"IFERROR(ROUNDDOWN((M4-L4)/M4*100,0),\"\")","v":""},null,null,{"$f":"IFERROR(ROUNDUP(P4/Q4,2),\"\")","v":""},{"$f":"IFERROR(ROUNDDOWN((Q4-P4)/Q4*100,0),\"\")","v":""},null,null,null,"『ZEH』"]
[null,243,null,null,null,null,null,null,null,"","",null,null,"","",null,null,"","",null,null,null,"Nearly ZEH"]
[null,244,null,null,null,null,null,null,null,"","",null,null,"","",null,null,"","",null,null,null,"ZEH Ready"]
[null,245,null,null,null,null,null,null,null,"","",null,null,"","",null,null,"","",null,null,null,"ZEH Oriented"]
[null,246,null,null,null,null,null,null,null,"","",null,null,"","",null,null,"",""]
[null,247,null,null,null,null,null,null,null,"","",null,null,"","",null,null,"",""]
[null,248,null,null,null,null,null,null,null,"","",null,null,"","",null,null,"",""]
[null,249,null,null,null,null,null,null,null,"","",null,null,"","",null,null,"",""]
[null,250,null,null,null,null,null,null,null,"","",null,null,"","",null,null,"",""]
[null,251,null,null,null,null,null,null,null,"","",null,null,"","",null,null,"",""]
[null,252,null,null,null,null,null,null,null,"","",null,null,"","",null,null,"",""]
[null,253,null,null,null,null,null,null,null,"","",null,null,"","",null,null,"",""]
[null,254,null,null,null,null,null,null,null,"","",null,null,"","",null,null,"",""]
[null,255,null,null,null,null,null,null,null,"","",null,null,"","",null,null,"",""]
[null,256,null,null,null,null,null,null,null,"","",null,null,"","",null,null,"",""]
[null,257,null,null,null,null,null,null,null,"","",null,null,"","",null,null,"",""]
[null,258,null,null,null,null,null,null,null,"","",null,null,"","",null,null,"",""]
[null,259,null,null,null,null,null,null,null,"","",null,null,"","",null,null,"",""]
[null,260,null,null,null,null,null,null,null,"","",null,null,"","",null,null,"",""]
[null,261,null,null,null,null,null,null,null,"","",null,null,"","",null,null,"",""]
[null,262,null,null,null,null,null,null,null,"","",null,null,"","",null,null,"",""]
[null,263,null,null,null,null,null,null,null,"","",null,null,"","",null,null,"",""]
[null,264,null,null,null,null,null,null,null,"","",null,null,"","",null,null,"",""]
[null,265,null,null,null,null,null,null,null,"","",null,null,"","",null,null,"",""]
[null,266,null,null,null,null,null,null,null,"","",null,null,"","",null,null,"",""]
[null,267,null,null,null,null,null,null,null,"","",null,null,"","",null,null,"",""]
[null,268,null,null,null,null,null,null,null,"","",null,null,"","",null,null,"",""]
[null,269,null,null,null,null,null,null,null,"","",null,null,"","",null,null,"",""]
[null,270,null,null,null,null,null,null,null,"","",null,null,"","",null,null,"",""]
[null,271,null,null,null,null,null,null,null,"","",null,null,"","",null,null,"",""]
[null,272,null,null,null,null,null,null,null,"","",null,null,"","",null,null,"",""]
[null,273,null,null,null,null,null,null,null,"","",null,null,"","",null,null,"",""]
[null,274,null,null,null,null,null,null,null,"","",null,null,"","",null,null,"",""]
[null,275,null,null,null,null,null,null,null,"","",null,null,"","",null,null,"",""]
[null,276,null,null,null,null,null,null,null,"","",null,null,"","",null,null,"",""]
[null,277,null,null,null,null,null,null,null,"","",null,null,"","",null,null,"",""]
[null,278,null,null,null,null,null,null,null,"","",null,null,"","",null,null,"",""]
[null,279,null,null,null,null,null,null,null,"","",null,null,"","",null,null,"",""]
[null,280,null,null,null,null,null,null,null,"","",null,null,"","",null,null,"",""]
[null,281,null,null,null,null,null,null,null,"","",null,null,"","",null,null,"",""]
[null,282,null,null,null,null,null,null,null,"","",null,null,"","",null,null,"",""]
[null,283,null,null,null,null,null,null,null,"","",null,null,"","",null,null,"",""]
[null,284,null,null,null,null,null,null,null,"","",null,null,"","",null,null,"",""]
[null,285,null,null,null,null,null,null,null,"","",null,null,"","",null,null,"",""]
[null,286,null,null,null,null,null,null,null,"","",null,null,"","",null,null,"",""]
[null,287,null,null,null,null,null,null,null,"","",null,null,"","",null,null,"",""]
[null,288,null,null,null,null,null,null,null,"","",null,null,"","",null,null,"",""]
[null,289,null,null,null,null,null,null,null,"","",null,null,"","",null,null,"",""]
[null,290,null,null,null,null,null,null,null,"","",null,null,"","",null,null,"",""]
[null,291,null,null,null,null,null,null,null,"","",null,null,"","",null,null,"",""]
[null,292,null,null,null,null,null,null,null,"","",null,null,"","",null,null,"",""]
[null,293,null,null,null,null,null,null,null,"","",null,null,"","",null,null,"",""]
[null,294,null,null,null,null,null,null,null,"","",null,null,"","",null,null,"",""]
[null,295,null,null,null,null,null,null,null,"","",null,null,"","",null,null,"",""]
[null,296,null,null,null,null,null,null,null,"","",null,null,"","",null,null,"",""]
[null,297,null,null,null,null,null,null,null,"","",null,null,"","",null,null,"",""]
[null,298,null,null,null,null,null,null,null,"","",null,null,"","",null,null,"",""]
[null,299,null,null,null,null,null,null,null,"","",null,null,"","",null,null,"",""]
[null,300,null,null,null,null,null,null,null,"","",null,null,"","",null,null,"",""]
[null,null,null,"ページごと合計",{"$f":"SUM(E3:E62)","v":0},null,null,{"$f":"SUM(H3:H62)","v":0},{"$f":"SUM(I3:I62)","v":0},null,null,{"$f":"SUM(L3:L62)","v":0},{"$f":"SUM(M3:M62)","v":0},null,null,{"$f":"SUM(P3:P62)","v":0},{"$f":"SUM(Q3:Q62)","v":0}]
[]
[null,null,null,null,null,null,null,null,null,null,null,null,null,null,null,null,null,null,null,null,"№5"]